fUSD/lending_fUSD_20260224
["ID","MTS","AMOUNT","RATE_DAILY","PERIOD"]
[406529310,1771915835978,-309.88642084,0.00013698,2]
[406529315,1771915837527,-161.04974184,0.00012419,2]
[406529316,1771915837536,-1646.80903064,0.00013074,2]
[406529317,1771915837591,-14123.908,0.00013074,2]
[406529318,1771915837655,-976.09516634,0.00013074,2]
[406529518,1771915839760,-1476.86864711,0.00013074,2]
[406529520,1771915839769,-775.73473212,0.00013205,2]
[406529538,1771915839925,-1173.97723346,0.00012419,2]
[406529540,1771915839935,-13889.63453553,0.00013205,2]
[406529551,1771915840022,-270.00005,0.00013205,2]
[406529553,1771915840033,-253.24101467,0.00013205,2]
[406529555,1771915840048,-3035.07051177,0.00013205,2]
[406529557,1771915840057,-68.96615452,0.00013698,2]
[406529559,1771915840066,-500.0,0.00013698,2]
[406529561,1771915840075,-500.0,0.00013698,2]
[406529563,1771915840085,-500.0,0.00013698,2]
[406529565,1771915840094,-500.0,0.00013698,2]
[406529567,1771915840103,-500.0,0.00013698,2]
[406529569,1771915840112,-500.0,0.00013698,2]
[406529571,1771915840123,-500.0,0.00013698,2]
[406529573,1771915840132,-500.0,0.00013698,2]
[406529575,1771915840141,-500.0,0.00013698,2]
[406529576,1771915840150,-505.72642802,0.00013698,2]
[406529577,1771915840159,-500.0,0.00013698,2]
[406529578,1771915840169,-509.02499655,0.00013698,2]
[406529579,1771915840178,-500.0,0.00013698,2]
[406529580,1771915840187,-500.0,0.00013698,2]
[406529581,1771915840196,-500.0,0.00013698,2]
[406529582,1771915840205,-500.0,0.00013698,2]
[406529584,1771915840215,-500.0,0.00013698,2]
[406529586,1771915840224,-500.0,0.00013698,2]
[406529588,1771915840233,-500.0,0.00013698,2]
[406529590,1771915840242,-500.0,0.00013698,2]
[406529592,1771915840251,-500.0,0.00013698,2]
[406529594,1771915840260,-500.0,0.00013698,2]
[406529596,1771915840269,-500.0,0.00013698,2]
[406529598,1771915840278,-500.0,0.00013698,2]
[406529600,1771915840287,-500.0,0.00013698,2]
[406529602,1771915840295,-500.0,0.00013698,2]
[406529604,1771915840306,-505.3008994,0.00013698,2]
[406529605,1771915840315,-500.0,0.00013698,2]
[406529607,1771915840324,-500.0,0.00013698,2]
[406529609,1771915840333,-500.0,0.00013698,2]
[406529611,1771915840342,-500.0,0.00013698,2]
[406529613,1771915840351,-500.0,0.00013698,2]
[406529615,1771915840361,-500.0,0.00013698,2]
[406529617,1771915840370,-500.0,0.00013698,2]
[406529619,1771915840379,-500.0,0.00013698,2]
[406529621,1771915840388,-500.0,0.00013698,2]
[406529623,1771915840398,-500.0,0.00013698,2]
[406529625,1771915840408,-500.0,0.00013698,2]
[406529627,1771915840417,-500.0,0.00013698,2]
[406529629,1771915840426,-500.0,0.00013698,2]
[406529631,1771915840435,-500.0,0.00013698,2]
[406529633,1771915840444,-500.0,0.00013698,2]
[406529635,1771915840453,-500.0,0.00013698,2]
[406529637,1771915840462,-500.0,0.00013698,2]
[406529639,1771915840471,-500.0,0.00013698,2]
[406529641,1771915840479,-500.0,0.00013698,2]
[406529643,1771915840488,-500.0,0.00013698,2]
[406529645,1771915840496,-500.0,0.00013698,2]
[406529647,1771915840505,-500.0,0.00013698,2]
[406529649,1771915840513,-500.0,0.00013698,2]
[406529651,1771915840522,-500.0,0.00013698,2]
[406529653,1771915840531,-500.0,0.00013698,2]
[406529655,1771915840542,-500.0,0.00013698,2]
[406529657,1771915840550,-500.0,0.00013698,2]
[406529659,1771915840559,-500.0,0.00013698,2]
[406529661,1771915840567,-500.0,0.00013698,2]
[406529663,1771915840576,-500.0,0.00013698,2]
[406529665,1771915840584,-500.0,0.00013698,2]
[406529666,1771915840593,-500.0,0.00013698,2]
[406529668,1771915840601,-500.0,0.00013698,2]
[406529671,1771915840611,-500.0,0.00013698,2]
[406529673,1771915840619,-177.32,0.00013699,2]
[406529674,1771915840628,-16296.14,0.00013699,2]
[406529677,1771915840637,-200.0,0.00013699,2]
[406529679,1771915840646,-501.16839178,0.00013699,2]
[406529680,1771915840654,-500.0,0.00013699,2]
[406529683,1771915840663,-500.0,0.00013699,2]
[406529684,1771915840672,-500.0,0.00013699,2]
[406529686,1771915840681,-500.0,0.00013699,2]
[406529689,1771915840691,-500.0,0.00013699,2]
[406529691,1771915840700,-162.13031906,0.00013699,2]
[406529693,1771915840709,-164.16786887,0.00013699,2]
[406529695,1771915840718,-462.25622606,0.00013699,2]
[406529697,1771915840726,-304.38005979,0.00013699,2]
[406529698,1771915840735,-500.0,0.00013699,2]
[406529700,1771915840744,-599.206441,0.00013699,2]
[406529702,1771915840754,-241.86216209,0.00013699,2]
[406529705,1771915840763,-170.38160206,0.00013699,2]
[406529707,1771915840772,-168.61283304,0.00013699,2]
[406529709,1771915840781,-500.0,0.00013699,2]
[406529711,1771915840790,-500.0,0.00013699,2]
[406529713,1771915840799,-165.837554,0.00013699,2]
[406529715,1771915840807,-1532.79,0.00013814,2]
[406529717,1771915840816,-1600.0,0.00013817,2]
[406529719,1771915840825,-166.66,0.00013825,2]
[406529721,1771915840834,-666.0,0.00013887,2]
[406529723,1771915840842,-500.0,0.00013887,2]
[406529725,1771915840851,-500.0,0.00013887,2]
[406529727,1771915840860,-500.0,0.00013887,2]
[406529729,1771915840869,-500.0,0.00013887,2]
[406529731,1771915840879,-500.0,0.00013887,2]
[406529733,1771915840887,-500.0,0.00013887,2]
[406529735,1771915840896,-500.0,0.00013887,2]
[406529737,1771915840905,-73296.22,0.00013888,2]
[406529738,1771915840914,-500.0,0.00013888,2]
[406529740,1771915840923,-215.42973367,0.00013968,2]
[406529742,1771915840931,-1426.21591721,0.00014056,2]
[406529744,1771915840940,-150.0,0.00014068,2]
[406529746,1771915840949,-1532.79,0.00014088,2]
[406529748,1771915840957,-500.0,0.00014162,2]
[406529750,1771915840966,-565.59384868,0.00014168,2]
[406529752,1771915840975,-501.80624812,0.00014168,2]
[406529754,1771915840984,-506.65948462,0.00014168,2]
[406529777,1771915841181,-30233.12343206,0.00014209,2]
[406529779,1771915841190,-166.66,0.00014228,2]
[406529781,1771915841200,-500.0,0.00014247,2]
[406529783,1771915841209,-1000.0,0.00014247,2]
[406529785,1771915841218,-1000.0,0.00014247,2]
[406529787,1771915841227,-501.53221813,0.00014247,2]
[406529789,1771915841236,-1000.0,0.00014247,2]
[406529791,1771915841244,-1099.53316827,0.00014247,2]
[406529793,1771915841253,-1000.0,0.00014247,2]
[406529795,1771915841262,-193.71551848,0.00014247,2]
[406529797,1771915841271,-500.0,0.00014309,2]
[406529799,1771915841280,-500.0,0.00014309,2]
[406529801,1771915841289,-500.0,0.00014309,2]
[406529803,1771915841298,-500.0,0.00014309,2]
[406529805,1771915841307,-512.75,0.00014309,2]
[406529806,1771915841316,-368.95,0.00014309,2]
[406529808,1771915841325,-605.01315196,0.00014309,2]
[406529810,1771915841334,-500.0,0.00014309,2]
[406529812,1771915841343,-1532.79,0.00014362,2]
[406529814,1771915841352,-569.57974704,0.00014379,2]
[406529816,1771915841362,-10357.55636516,0.0001439,2]
[406529818,1771915841370,-500.0,0.00014436,2]
[406529820,1771915841379,-587.0,0.0001446,2]
[406529822,1771915841388,-482.62224522,0.00014504,2]
[406529824,1771915841397,-482.62273313,0.00014504,2]
[406529826,1771915841406,-2351.0,0.00014519,2]
[406529828,1771915841415,-7225.78,0.00014544,2]
[406529830,1771915841425,-815.58401786,0.00014567,2]
[406529832,1771915841434,-438789.7362675,0.00014568,2]
[406529835,1771915841444,-151.0,0.00014568,2]
[406529837,1771915841453,-158.772003,0.00014568,2]
[406529839,1771915841462,-158.772003,0.00014568,2]
[406529841,1771915841472,-158.772003,0.00014568,2]
[406529843,1771915841481,-158.772003,0.00014568,2]
[406529845,1771915841490,-151.0,0.00014634,2]
[406529847,1771915841499,-151.0,0.00014634,2]
[406529849,1771915841508,-151.0,0.00014634,2]
[406529851,1771915841517,-151.0,0.00014634,2]
[406529853,1771915841526,-1532.79,0.00014636,2]
[406529855,1771915841547,-150.0,0.00014706,2]
[406529857,1771915841566,-500.0,0.0001471,2]
[406529859,1771915841577,-173.87087054,0.00014753,2]
[406529860,1771915841587,-160.0,0.00014753,2]
[406529862,1771915841596,-888.44252469,0.00014795,2]
[406529864,1771915841606,-1500.0,0.00014795,2]
[406529866,1771915841615,-1503.05357398,0.00014795,2]
[406529868,1771915841625,-1500.0,0.00014795,2]
[406529870,1771915841635,-433.0,0.00014796,2]
[406529872,1771915841643,-1426.21591721,0.00014825,2]
[406529874,1771915841654,-743.50770149,0.00014841,2]
[406529876,1771915841663,-500.0,0.00014841,2]
[406529878,1771915841672,-250.0,0.00014841,2]
[406529880,1771915841680,-500.0,0.00014841,2]
[406529882,1771915841690,-500.0,0.00014841,2]
[406529884,1771915841699,-500.0,0.00014841,2]
[406529886,1771915841708,-500.0,0.00014841,2]
[406529888,1771915841717,-500.0,0.00014841,2]
[406529890,1771915841728,-257.5744131,0.00014841,2]
[406529892,1771915841737,-500.0,0.00014841,2]
[406529894,1771915841746,-500.0,0.00014841,2]
[406529896,1771915841756,-500.0,0.00014841,2]
[406529898,1771915841765,-500.0,0.00014841,2]
[406529900,1771915841774,-500.0,0.00014841,2]
[406529902,1771915841783,-1847.79,0.00014853,2]
[406529904,1771915841793,-482.62224522,0.00014866,2]
[406529906,1771915841802,-482.62273313,0.00014866,2]
[406529908,1771915841811,-176.18400318,0.000149,2]
[406529910,1771915841820,-1532.79,0.0001491,2]
[406529912,1771915841830,-4690.9743752,0.00014965,2]
[406529914,1771915841839,-250.0,0.00014965,2]
[406529916,1771915841848,-150.0,0.00014968,2]
[406529918,1771915841859,-12952.4658786,0.00014976,2]
[406529920,1771915841868,-500.0,0.00014984,2]
[406529922,1771915841877,-2057.23131483,0.00015,2]
[406529924,1771915841886,-18027.12324089,0.00015,7]
[406529926,1771915841895,-8008.97204016,0.00015,2]
[406529928,1771915841905,-250.0,0.00015,2]
[406529929,1771915841914,-500.0,0.00015068,2]
[406529930,1771915841923,-500.0,0.00015068,2]
[406529931,1771915841933,-900.0,0.00015068,2]
[406529932,1771915841942,-151.0,0.00015068,2]
[406529933,1771915841951,-151.0,0.00015068,2]
[406529934,1771915841959,-240439.56128328,0.0001512,2]
[406529935,1771915841968,-515.0,0.0001512,2]
[406529937,1771915841977,-6938.24720907,0.0001516,2]
[406529938,1771915841986,-448.24817942,0.0001516,2]
[406529940,1771915841995,-1000.0,0.00015178,2]
[406529942,1771915842005,-1532.79,0.00015184,2]
[406529944,1771915842014,-482.62224522,0.00015229,2]
[406529946,1771915842023,-482.62273313,0.00015229,2]
[406529948,1771915842033,-500.0,0.00015258,2]
[406529950,1771915842043,-569.57974704,0.0001526,2]
[406529952,1771915842056,-600.98,0.00015281,2]
[406529955,1771915842065,-1517.64,0.000153,2]
[406529957,1771915842075,-2000.0,0.00015342,2]
[406529959,1771915842090,-755.82806005,0.00015342,2]
[406529961,1771915842114,-1600.0,0.00015352,2]
[406529963,1771915842133,-771.01748645,0.00015389,2]
[406529965,1771915842154,-500.0,0.00015398,2]
[406529966,1771915842163,-510.0565306,0.000154,2]
[406529968,1771915842173,-1532.79,0.00015458,2]
[406529970,1771915842184,-500.0,0.00015532,2]
[406529972,1771915842196,-4263.61,0.00015537,2]
[406529973,1771915842207,-482.62224522,0.00015592,2]
[406529974,1771915842219,-482.62273313,0.00015592,2]
[406529975,1771915842228,-1426.21591721,0.00015594,2]
[406529976,1771915842238,-500.0,0.00015639,2]
[406529978,1771915842248,-1532.79,0.00015732,2]
[406529980,1771915842259,-490.04415408,0.00015805,2]
[406529982,1771915842269,-2247.75609779,0.00015807,2]
[406529983,1771915842279,-3496.0,0.00015865,2]
[406529985,1771915842290,-1362.398,0.00015865,2]
[406529986,1771915842300,-618.0,0.00015865,2]
[406529987,1771915842310,-1040.0,0.00015865,2]
[406529988,1771915842320,-150.597,0.00015865,2]
[406529989,1771915842331,-1277.0,0.00015865,2]
[406529990,1771915842342,-920.0,0.00015865,2]
[406529991,1771915842352,-413.0,0.00015865,2]
[406529992,1771915842362,-5980.0,0.00015865,2]
[406529993,1771915842373,-823.0,0.00015874,2]
[406529994,1771915842385,-796.51670996,0.0001589,2]
[406529995,1771915842395,-799.54513345,0.00015937,2]
[406529996,1771915842405,-482.62273313,0.00015954,2]
[406529997,1771915842415,-3292.0,0.00015971,2]
[406529998,1771915842424,-419.22118993,0.00016,2]
[406529999,1771915842433,-152.9290077,0.00016,2]
[406530000,1771915842442,-150.0,0.00016,2]
[406530001,1771915842451,-380.32235674,0.00016,2]
[406530002,1771915842460,-150.0,0.00016,2]
[406530003,1771915842469,-1532.79,0.00016005,2]
[406530004,1771915842479,-8913.42,0.00016038,2]
[406530005,1771915842488,-736.0,0.00016073,2]
[406530006,1771915842496,-380.32235674,0.000161,2]
[406530007,1771915842506,-151.0,0.00016116,2]
[406530008,1771915842515,-158.772003,0.00016116,2]
[406530009,1771915842524,-158.772003,0.00016116,2]
[406530010,1771915842532,-158.772003,0.00016116,2]
[406530011,1771915842541,-158.772003,0.00016116,2]
[406530012,1771915842550,-9999.99,0.00016116,2]
[406530013,1771915842559,-438789.7362675,0.00016116,2]
[406530014,1771915842568,-255.46,0.00016122,2]
[406530015,1771915842576,-569.57974704,0.0001614,2]
[406530016,1771915842585,-5000.00523939,0.000162,5]
[406530017,1771915842594,-380.32235674,0.000162,2]
[406530018,1771915842608,-5785.0,0.0001624,2]
[406530019,1771915842617,-552.46,0.00016271,2]
[406530020,1771915842626,-1532.79,0.00016279,2]
[406530021,1771915842634,-482.62273313,0.00016317,2]
[406530022,1771915842643,-200.0,0.0001634,2]
[406530023,1771915842652,-1426.21591721,0.00016363,2]
[406530024,1771915842661,-6848.68,0.00016379,2]
[406530025,1771915842670,-900.0,0.00016438,2]
[406530026,1771915842678,-20000.0,0.00016438,2]
[406530027,1771915842687,-157.600476,0.00016438,2]
[406530028,1771915842696,-829.12830338,0.00016485,2]
[406530029,1771915842705,-256.86,0.00016493,2]
[406530030,1771915842713,-168.0,0.00016537,2]
[406530031,1771915842722,-1532.79,0.00016553,2]
[406530032,1771915842731,-884.36,0.00016569,2]
[406530033,1771915842740,-361.85708907,0.000166,2]
[406530034,1771915842749,-482.62273313,0.00016679,2]
[406530035,1771915842758,-167.31,0.00016712,2]
[406530036,1771915842767,-168.0,0.00016794,2]
[406530037,1771915842776,-359.12541421,0.00016808,2]
[406530038,1771915842785,-427.76795387,0.00016812,2]
[406530039,1771915842794,-490.10037666,0.00016812,2]
[406530040,1771915842803,-168.0,0.00016815,2]
[406530041,1771915842812,-1532.79,0.00016827,2]
[406530042,1771915842820,-1000.0,0.00016864,2]
[406530043,1771915842830,-1600.0,0.00016887,2]
[406530044,1771915842838,-4690.9743752,0.00016912,2]
[406530045,1771915842847,-12952.4658786,0.00016934,2]
[406530046,1771915842856,-6623.03809716,0.00016946,2]
[406530047,1771915842865,-200.0,0.00016983,2]
[406530048,1771915842873,-309.11765045,0.00016999,2]
[406530049,1771915842883,-266306.66830407,0.00017,2]
[406530050,1771915842891,-173.87087054,0.00017,7]
[406530051,1771915842900,-300.0,0.00017,2]
[406530052,1771915842909,-168.0,0.00017019,2]
[406530053,1771915842917,-569.57974704,0.0001702,2]
[406530054,1771915842926,-500.0,0.00017027,2]
[406530055,1771915842935,-500.0,0.00017027,2]
[406530056,1771915842943,-185.18847432,0.00017027,2]
[406530057,1771915842952,-500.0,0.00017027,2]
[406530058,1771915842961,-500.0,0.00017027,2]
[406530059,1771915842970,-500.0,0.00017027,2]
[406530060,1771915842979,-289.81860285,0.00017027,2]
[406530061,1771915842987,-500.0,0.00017027,2]
[406530062,1771915842996,-500.0,0.00017027,2]
[406530063,1771915843005,-500.0,0.00017027,2]
[406530064,1771915843015,-500.0,0.00017027,2]
[406530065,1771915843023,-510.28250517,0.00017027,2]
[406530066,1771915843039,-859.80605061,0.00017033,2]
[406530067,1771915843051,-482.62273313,0.00017042,2]
[406530068,1771915843061,-3535.0,0.00017057,2]
[406530069,1771915843069,-1613.931096,0.000171,2]
[406530070,1771915843081,-1532.79,0.00017101,2]
[406530071,1771915843094,-168.0,0.00017117,2]
[406530072,1771915843103,-507.72635797,0.0001712,5]
[406530073,1771915843113,-1426.21591721,0.00017131,2]
[406530074,1771915843121,-168.0,0.00017148,2]
[406530076,1771915843140,-552.46,0.00017175,2]
[406530078,1771915843150,-168.0,0.0001718,2]
[406530079,1771915843159,-350.0,0.00017342,2]
[406530080,1771915843167,-168.0,0.00017352,2]
[406530081,1771915843180,-350.0,0.00017357,2]
[406530082,1771915843190,-515.0,0.00017357,4]
[406530083,1771915843199,-168.0,0.00017362,2]
[406530084,1771915843207,-350.0,0.00017365,2]
[406530085,1771915843216,-1532.79,0.00017375,2]
[406530086,1771915843228,-350.0,0.00017386,2]
[406530087,1771915843237,-168.0,0.00017402,2]
[406530088,1771915843247,-482.62273313,0.00017405,2]
[406530089,1771915843256,-1152.0,0.00017426,2]
[406530090,1771915843268,-1252.0,0.00017475,2]
[406530091,1771915843279,-350.0,0.00017492,2]
[406530092,1771915843289,-4609.0,0.00017568,2]
[406530093,1771915843299,-891.61887448,0.00017581,2]
[406530094,1771915843309,-350.0,0.00017587,2]
[406530095,1771915843318,-350.0,0.00017624,2]
[406530096,1771915843328,-255.46,0.00017627,2]
[406530097,1771915843337,-1279.27657175,0.0001764,2]
[406530098,1771915843348,-1532.79,0.00017649,2]
[406530099,1771915843359,-286.339251,0.00017665,2]
[406530100,1771915843369,-158.772003,0.00017665,2]
[406530101,1771915843378,-158.772003,0.00017665,2]
[406530102,1771915843387,-158.772003,0.00017665,2]
[406530103,1771915843396,-158.772003,0.00017665,2]
[406530104,1771915843406,-415042.53100287,0.00017665,2]
[406530105,1771915843453,-225.77429518,0.00012419,2]
[406530106,1771915843462,-804.15859406,0.00017665,2]
[406530107,1771915843475,-22943.04667057,0.00017665,2]
[406530108,1771915843485,-350.0,0.00017726,2]
[406530109,1771915843494,-482.62273313,0.00017767,2]
[406530110,1771915843505,-272.7680874,0.00017796,2]
[406530111,1771915843516,-1173.43655789,0.00017808,2]
[406530112,1771915843528,-1173.43655789,0.00017808,2]
[406530114,1771915843538,-1173.43655789,0.00017808,2]
[406530116,1771915843551,-1173.43655789,0.00017808,2]
[406530118,1771915843561,-1173.43655789,0.00017808,2]
[406530119,1771915843571,-1173.43655789,0.00017808,2]
[406530120,1771915843582,-1173.43655789,0.00017808,2]
[406530121,1771915843592,-1173.43655789,0.00017808,2]
[406530122,1771915843603,-1173.43655789,0.00017808,2]
[406530123,1771915843612,-1173.43655789,0.00017808,2]
[406530124,1771915843623,-1173.43655789,0.00017808,2]
[406530125,1771915843633,-1173.43655789,0.00017808,2]
[406530126,1771915843643,-1173.43655789,0.00017808,2]
[406530127,1771915843655,-1173.43655789,0.00017808,2]
[406530128,1771915843666,-1173.43655789,0.00017808,2]
[406530129,1771915843676,-1173.43655789,0.00017808,2]
[406530130,1771915843687,-1173.43655789,0.00017808,2]
[406530131,1771915843696,-1173.43655789,0.00017808,2]
[406530132,1771915843706,-1184.10416296,0.00017808,2]
[406530133,1771915843717,-1184.10416296,0.00017808,2]
[406530134,1771915843727,-1184.10416296,0.00017808,2]
[406530135,1771915843737,-1184.10416296,0.00017808,2]
[406530136,1771915843748,-1184.10416296,0.00017808,2]
[406530137,1771915843758,-1184.10416296,0.00017808,2]
[406530138,1771915843771,-1184.10416296,0.00017808,2]
[406530139,1771915843782,-1184.10416296,0.00017808,2]
[406530140,1771915843792,-1184.10416296,0.00017808,2]
[406530141,1771915843802,-1184.10416296,0.00017808,2]
[406530142,1771915843812,-1184.10416296,0.00017808,2]
[406530143,1771915843822,-800.0,0.00017808,2]
[406530144,1771915843832,-1005.12410844,0.0001786,2]
[406530145,1771915843842,-25000.0,0.00017891,3]
[406530146,1771915843855,-25000.0,0.000179,3]
[406530147,1771915843866,-25000.0,0.000179,3]
[406530148,1771915843876,-4620.22579536,0.000179,3]
[406530149,1771915843885,-14424.61609849,0.000179,3]
[406530150,1771915843896,-569.57974704,0.000179,2]
[406530151,1771915843906,-173.87087054,0.000179,3]
[406530152,1771915843916,-254.88359274,0.000179,2]
[406530153,1771915845550,-9473.37932789,0.00012419,2]
[406530154,1771915845600,-2551.51389848,0.00012419,2]
[406530155,1771915845697,-407.0,0.00012419,2]
[406530156,1771915845708,-314.8256549,0.00012419,2]
[406530159,1771916022573,3797.78,0.00011233,2]
[406530169,1771916540720,-195.02,0.000121,2]
[406530170,1771916540742,-1004.98,0.00012119,2]
[406530174,1771916739010,-173.5810657,0.00011869,2]
[406530177,1771916762273,-300.0,0.00011868,2]
[406530178,1771916762302,-150.0,0.00011868,2]
[406530179,1771916762410,-4688.89982086,0.00011869,2]
[406530180,1771916762595,-10000.01,0.00011869,2]
[406530181,1771916762847,-10000.01,0.00011869,2]
[406530182,1771916763096,-10000.01,0.00011869,2]
[406530183,1771916765133,-10000.01,0.00011869,2]
[406530184,1771916771139,-1000.0,0.00011868,2]
[406530185,1771916771174,-8000.01,0.00011869,2]
[406530186,1771916771258,-10000.01,0.00011869,2]
[406530187,1771916771378,-10000.01,0.00011869,2]
[406530214,1771917031624,-1000.0,0.00011754,2]
[406530215,1771917031634,-300.0,0.00011812,2]
[406530216,1771917031643,-250.0,0.00011812,2]
[406530217,1771917031653,-433.66911344,0.00011869,2]
[406530218,1771917031662,-250.0,0.00011948,2]
[406530219,1771917031672,-300.0,0.00012017,2]
[406530220,1771917031682,-300.0,0.00012017,2]
[406530221,1771917031697,-300.0,0.00012017,2]
[406530222,1771917031718,-1200.0,0.00012017,2]
[406530223,1771917031728,-3350.91071063,0.00012018,2]
[406530224,1771917031750,-1825.6,0.00012018,2]
[406530225,1771917031771,-594.10059381,0.00012018,2]
[406530226,1771917031780,-2138.0001766,0.00012018,2]
[406530227,1771917031792,-32560.92289855,0.00012018,2]
[406530228,1771917031801,-384.2673401,0.00012018,2]
[406530229,1771917031811,-9532.47156282,0.00012018,2]
[406530230,1771917031821,-173.96006786,0.00012072,2]
[406530231,1771917031830,-150.0,0.00012081,2]
[406530232,1771917031840,-500.0,0.00012081,2]
[406530233,1771917031849,-500.0,0.00012081,2]
[406530234,1771917031858,-500.0,0.00012081,2]
[406530235,1771917031867,-500.0,0.00012081,2]
[406530236,1771917031877,-500.0,0.00012081,2]
[406530237,1771917031886,-500.0,0.00012081,2]
[406530238,1771917031895,-500.0,0.00012081,2]
[406530239,1771917031905,-500.0,0.00012081,2]
[406530241,1771917031915,-500.0,0.00012081,2]
[406530243,1771917031924,-500.0,0.00012081,2]
[406530245,1771917031933,-500.0,0.00012081,2]
[406530247,1771917031942,-500.0,0.00012081,2]
[406530249,1771917031952,-563.60112877,0.00012081,2]
[406530251,1771917031962,-500.0,0.00012081,2]
[406530253,1771917031971,-500.0,0.00012081,2]
[406530255,1771917031981,-500.0,0.00012081,2]
[406530257,1771917031990,-500.0,0.00012081,2]
[406530259,1771917031999,-450.30944054,0.00012081,2]
[406530261,1771917032008,-500.0,0.00012081,2]
[406530263,1771917032018,-500.0,0.00012081,2]
[406530265,1771917032028,-500.0,0.00012081,2]
[406530267,1771917032037,-476.31120532,0.00012081,2]
[406530269,1771917032047,-500.0,0.00012081,2]
[406530271,1771917032056,-290.1155594,0.00012081,2]
[406530273,1771917032064,-972747.31357145,0.00012082,2]
[406530276,1771917032078,-5933.00703067,0.00012082,2]
[406530280,1771917032110,-57801.33355908,0.00012082,2]
[406530306,1771917037926,-1382.06179791,0.00012082,2]
[406530307,1771917037987,-209.5999999,0.00012082,2]
[406530317,1771917039924,-2322666.18416728,0.00012082,2]
[406530318,1771917040109,-825.48384484,0.00012082,2]
[406530319,1771917040454,-756.06751918,0.00012082,2]
[406530331,1771917045612,-2383.84116754,0.00012082,2]
[406530332,1771917045673,-6307.0,0.00012082,2]
[406530333,1771917045734,-574.7737774,0.00012082,2]
[406530349,1771917103741,10000.01,0.00011523,2]
[406530350,1771917103763,436.37,0.00011523,2]
[406530352,1771917131309,600.98,0.00011437,2]
[406530353,1771917141951,292.55,0.000117,2]
[406530358,1771917343362,1283.2,0.00011288,2]
[406530359,1771917366327,-1500.0,0.00011734,2]
[406530363,1771917695982,920.81432704,0.00011734,2]
[406530364,1771917759026,7526.48190995,0.0001173,2]
[406530365,1771917765908,488.19859593,0.0001173,2]
[406530366,1771917767794,1985.32949412,0.0001173,2]
[406530367,1771917767816,3576.76669679,0.0001173,2]
[406530368,1771917788659,166.66,0.00010959,2]
[406530369,1771917788867,166.66,0.00011083,2]
[406530370,1771917789098,166.66,0.00011207,2]
[406530371,1771917789302,166.66,0.00011332,2]
[406530372,1771917789495,166.66,0.00011456,2]
[406530373,1771917789694,166.66,0.0001158,2]
[406530377,1771917953651,5423.28330321,9.95e-05,2]
[406530378,1771917953675,10000.01,9.95e-05,2]
[406530379,1771917953700,10000.01,9.95e-05,2]
[406530380,1771917953723,10000.01,9.95e-05,2]
[406530381,1771917953748,1825.30977522,9.95e-05,2]
[406530382,1771917960472,6217.29846143,8e-05,2]
[406530385,1771917990945,1600.0,0.00010994,2]
[406530386,1771918001129,150.0,0.00010975,2]
[406530387,1771918022254,150.0,0.000158,120]
[406530388,1771918031631,325.46573062,0.00011726,2]
[406530391,1771918058638,192.42705883,0.00011726,2]
[406530392,1771918100406,2500.0,0.00011719,2]
[406530393,1771918103278,9850.0,0.0001812,120]
[406530394,1771918116211,2549.72479878,0.00011726,2]
[406530395,1771918116244,4282.39241177,0.00011726,2]
[406530396,1771918116268,3970.17990358,0.00011726,2]
[406530400,1771918129609,5017.65460664,0.00011726,2]
[406530401,1771918140370,1012.17548978,0.00011734,2]
[406530402,1771918140394,1474.23451022,0.00011734,2]
[406530403,1771918161816,216.97715374,0.00011726,2]
[406530404,1771918173572,4671.5,0.00018101,120]